[Event "Teplice Open 2022"]
[Site "Teplice"]
[Date "2022.06.18"]
[Round "1.1"]
[White "Santos Latasa, Jaime"]
[Black "Riebel, Werner"]
[Result "1-0"]
[ECO "A06"]
[WhiteElo "2672"]
[BlackElo "2118"]
[Annotator "TA"]
[PlyCount "38"]
[EventDate "2022.06.18"]
[EventType "swiss"]
[EventCountry "CZE"]
[SourceTitle "playchess.com"]
[Source "ChessBase"]
[SourceQuality "1"]
[TimeControl "40/5400+30:1800+30"]

{[%evp 9,38,9,24,18,18,18,25,16,50,55,94,90,93,86,81,93,103,52,83,72,85,50,29,0,181,163,307,319,442,430,379]} 1. Nf3 {[%emt 0:00:03]} d5 {[%emt 0:00:12]} 2. e3 {[%emt 0:00:06]} Bg4 {[%emt 0:00:36]} 3. h3 {[%emt 0:00:54]} Bxf3 {[%emt 0:00:34]} 4. Qxf3 {[%emt 0:00:07]} e6 {[%emt 0:01:00]} 5. b3 {[%emt 0:00:50]} Nf6 {[%emt 0:00:40]} 6. Bb2 {[%emt 0:00:08] A06: Réti Opening: 1 Nf3 d5.} Nbd7 {[%emt 0:00:23]} 7. g4 {[%emt 0:01:17]} h6 {[%emt 0:01:15]} 8. h4 {[%emt 0:01:09] White has an edge.} Bd6 {[%emt 0:04:02]} 9. g5 {[%emt 0:02:48]} hxg5 {[%emt 0:01:37]} 10. hxg5 {[%emt 0:00:11]} Rxh1 {[%emt 0:00:25]} 11. Qxh1 {[%emt 0:00:06]} Ne4 {[%emt 0:01:15]} 12. d3 {[%emt 0:02:14]} Nec5 {[%emt 0:01:32] [#]} 13. g6 $146 {[%emt 0:06:40]} (13. Bxg7 $6 Qxg5 14. Bc3 (14. Qh8+ Ke7 $17) 14... O-O-O $11) (13. f4 $16) ({Predecessor:} 13. Qh8+ Bf8 14. Bxg7 Qxg5 15. Bxf8 Nxf8 16. Nd2 Ncd7 17. Nf3 Qf6 18. Qxf6 Nxf6 19. d4 N8d7 20. Bd3 Ke7 21. Ke2 Rg8 22. Rh1 Rg2 23. Kf1 Rg8 {½-½ (23) Lovric,B (2283)-Jurkovic,H (2433) Rijeka 2004}) 13... f6 {[%emt 0:00:18]} 14. Qh8+ {[%emt 0:04:22]} Bf8 {[%emt 0:00:41]} 15. Qg8 {[%emt 0:00:17][%csl Gg6][%cal Rg8f7] [#] White is more active.} Qe7 {[%emt 0:00:30] Inhibits Qf7+.} 16. Ba3 {[%emt 0:00:07]} b5 $2 {[%emt 0:02:42]} (16... f5 $11) 17. Nd2 {[%emt 0:07:03] Hoping for d4.} c6 {[%emt 0:05:39]} (17... Rb8 {was called for.} 18. d4 b4) 18. d4 $18 {[%emt 0:00:42]} Nd3+ {[%emt 0:01:27]} 19. Bxd3 {[%emt 0:00:08]} ({Less strong is} 19. cxd3 Qxa3 20. Qxe6+ Kd8 21. Qxc6 Nb6 $18) 19... Qxa3 {[%emt 0:00:11] Weighted Error Value: White=0.11 (very precise) /Black=0.59} 1-0

[Event "Teplice Open 2022"]
[Site "Teplice"]
[Date "2022.06.18"]
[Round "1.2"]
[White "Dougherty, Michael"]
[Black "Narayanan.S.L"]
[Result "1-0"]
[ECO "D40"]
[WhiteElo "2115"]
[BlackElo "2662"]
[Annotator "TA"]
[PlyCount "52"]
[EventDate "2022.06.18"]
[EventType "swiss"]
[EventCountry "CZE"]
[SourceTitle "playchess.com"]
[Source "ChessBase"]
[SourceQuality "1"]
[TimeControl "40/5400+30:1800+30"]

{[%evp 23,52,-15,-16,-24,-15,-21,-27,-34,-12,-57,-56,-131,-141,-133,-101,-113,-104,-119,-136,-137,-121,-214,-137,-631,-629,-772,-758,-1733,-1842,-1447,-1440]} 1. Nf3 {[%emt 0:00:14]} c5 {[%emt 0:00:29]} 2. c4 {[%emt 0:00:09]} Nc6 {[%emt 0:00:31]} 3. Nc3 {[%emt 0:00:46]} Nf6 {[%emt 0:00:25]} 4. e3 {[%emt 0:00:35]} e6 {[%emt 0:01:22]} 5. d4 {[%emt 0:00:37]} d5 {[%emt 0:00:06]} 6. a3 {[%emt 0:01:41]} a6 {[%emt 0:00:37]} 7. Bd3 {[%emt 0:05:29]} dxc4 {[%emt 0:01:07]} 8. Bxc4 {[%emt 0:00:07]} b5 {[%emt 0:00:09]} 9. Bd3 {[%emt 0:01:13]} cxd4 {[%emt 0:03:55]} 10. exd4 {[%emt 0:00:07]} Be7 {[%emt 0:02:09]} 11. O-O {[%emt 0:01:31]} O-O {[%emt 0:00:35]} 12. Be3 {[%emt 0:04:49]} Bb7 {[%emt 0:00:43]} 13. Qe2 {[%emt 0:07:35] D40: Queen's Gambit Declined: Semi-Tarrasch with 5 e3.} Rc8 {[%emt 0:11:46]} 14. Rad1 {[%emt 0:07:55]} Na5 {[%emt 0:01:04][%cal Bc6a5,Ba5b3,Bb3d2][%mdl 32]} 15. Ne5 {[%emt 0:06:14] [#] Black has an edge.} Bxa3 $1 {[%emt 0:10:57]} 16. d5 {[%emt 0:18:54]} (16. Nxb5 axb5) 16... exd5 {[%emt 0:16:41] [#] aiming for ...Bd6.} 17. Nxd5 $146 {[%emt 0:08:11]} (17. bxa3 $15 Rxc3 18. Bd2) ({Predecessor:} 17. Bf5 Rxc3 18. bxc3 Qe7 19. Ng4 Re8 20. Qc2 Nxg4 21. Bxg4 Qe4 22. Qa2 Qxg4 23. Qxa3 {0-1 (65) Kainz,J (1925)-Jakits,L (2087) Austria 2015}) 17... Nxd5 $17 {[%emt 0:08:15]} 18. bxa3 {[%emt 0:07:58]} Qe7 {[%emt 0:00:20]} 19. Bd2 {[%emt 0:08:24] [#]} ({Avoid the trap} 19. Qh5 $2 g6 20. Qg5 f6 21. Nxg6 Qg7 $19) 19... Nb3 {[%emt 0:04:54] Pair of Knights!} 20. Rfe1 {[%emt 0:02:58][%cal Od3h7]} Nxd2 {[%emt 0:05:16]} 21. Qxd2 {[%emt 0:00:52][%cal Oe5g6]} Qxa3 {[%emt 0:01:28]} 22. Qg5 {[%emt 0:04:37]} (22. Be4 $17 Rcd8 23. h3) 22... Qd6 {[%emt 0:06:30]} ({Less strong is} 22... g6 23. Bxg6 hxg6 24. Nxg6 fxg6 25. Qxg6+ Kh8 26. Qh6+ Kg8 27. Qg6+ Kh8 28. Qh6+ Kg8 29. Qg6+ $11) 23. Bxh7+ $2 {[%emt 0:03:58][%mdl 8192] White does not recover from this.} (23. Be4 $17) 23... Kxh7 $19 {[%emt 0:00:19] Black is clearly winning.} 24. Re4 {[%emt 0:00:34] [#]} Nf4 $1 {[%emt 0:01:56]} 25. Qg4 {[%emt 0:02:36]} (25. Ree1 Qh6) 25... Qxd1+ 26. Qxd1 {[%emt 0:00:14]} Bxe4 {[%emt 0:00:16][%mdl 32768] Weighted Error Value: White=1.36/Black=0.09 (flawless) . Loss on time!?} 1-0

[Event "Teplice Open 2022"]
[Site "Teplice"]
[Date "2022.06.18"]
[Round "1.3"]
[White "Berkes, Ferenc"]
[Black "Pirola, Claudionor Alcides L"]
[Result "1-0"]
[ECO "D46"]
[WhiteElo "2654"]
[BlackElo "2114"]
[Annotator "TA"]
[PlyCount "63"]
[EventDate "2022.06.18"]
[EventType "swiss"]
[EventCountry "CZE"]
[SourceTitle "playchess.com"]
[Source "ChessBase"]
[SourceQuality "1"]
[TimeControl "40/5400+30:1800+30"]

{[%evp 18,63,37,-26,-30,-20,-22,-22,-22,-42,-47,-50,-56,-25,-27,-36,-29,-43,-18,-21,-21,-39,-19,-32,16,0,60,16,88,86,359,0,470,470,696,416,414,407,391,385,384,369,502,506,631,513,527,514]} 1. d4 {[%emt 0:00:03] Lutz,C} d5 {[%emt 0:00:03]} 2. c4 {[%emt 0:00:07]} e6 {[%emt 0:00:06]} 3. Nc3 {[%emt 0:00:11]} c6 {[%emt 0:00:03]} 4. e3 {[%emt 0:00:16][%cal Be2e3,Be3e4][%mdl 32]} Nf6 {[%emt 0:00:34]} 5. Nf3 {[%emt 0:02:22]} Nbd7 {[%emt 0:00:11]} 6. Bd3 {[%emt 0:00:48]} Bd6 {[%emt 0:02:55]} 7. O-O {[%emt 0:00:11]} O-O {[%emt 0:00:11]} 8. e4 {[%emt 0:01:02]} dxc4 {[%emt 0:02:02] now scores much better than the old 8...dxe4.} 9. Bxc4 {[%emt 0:00:07]} e5 {[%emt 0:00:14]} 10. Re1 {[%emt 0:03:58]} (10. Be3 $14) 10... exd4 $11 {[%emt 0:04:46] D46: Semi-Slav: 5 e3 Nbd7 6 Bd3, Black avoids the Meran.} 11. Qxd4 {[%emt 0:17:35]} Bc5 {[%emt 0:02:06] [#]} 12. Qd2 $146 {[%emt 0:00:23]} ({Predecessor:} 12. Qd1 Ng4 13. Re2 Nde5 14. Qxd8 Rxd8 15. Bb3 Nxf2 16. Na4 Nfd3+ 17. Nxc5 Nxf3+ 18. gxf3 Nxc5 {½-½ (98) Szmetan,J (2394)-Ricardi,P (2554) Pinamar 2001 CBM 082 [Lutz,C]}) 12... Ng4 {[%emt 0:03:23] The position is equal.} 13. Nd1 {[%emt 0:00:14] [#] Black must now prevent e5.} Nde5 {[%emt 0:03:06]} 14. Nxe5 {[%emt 0:00:17]} Nxe5 {[%emt 0:02:43]} 15. Bf1 {[%emt 0:00:12]} Be6 {[%emt 0:04:27]} 16. Qc2 {[%emt 0:09:46]} Bb6 {[%emt 0:05:40]} 17. Be3 {[%emt 0:02:47]} Qh4 {[%emt 0:03:29]} 18. Bxb6 {[%emt 0:05:05]} axb6 {[%emt 0:00:21]} 19. Qc3 {[%emt 0:04:32]} f6 {[%emt 0:06:59]} 20. f3 {[%emt 0:08:05]} Ra5 {[%emt 0:03:59]} (20... Bxa2 $2 {[#]} 21. Rxa2 $1 {[%mdl 512]} Rxa2 22. Bc4+ Nxc4 23. Qxc4+ Kh8 24. g3 $18) (20... Qg5 $15) 21. Nf2 {[%emt 0:00:49]} Rd8 {[%emt 0:08:36]} (21... Rxa2 $2 22. Rxa2 Bxa2 23. b3 $18) ({Black should play} 21... Qg5 $11) 22. Rad1 {[%emt 0:06:15]} Rxd1 {[%emt 0:07:24]} (22... Raa8 $11 {keeps the balance.}) 23. Rxd1 $16 {[%emt 0:01:17]} Rxa2 $2 {[%emt 0:00:21][%mdl 8192]} (23... Ra8 $16) 24. Qb4 $2 {[%emt 0:02:11]} ({Better is} 24. Rd6 $18) 24... b5 $2 {[%emt 0:04:24][%mdl 8192]} (24... h6 $11 {and Black stays safe.}) 25. Qe7 $1 $18 {[%emt 0:00:41][%csl LRb7,LRe6][%cal Re7e8]} Bd7 {[%emt 0:11:25] Against Qe8+} (25... Ra8 $142 26. Qxe6+ Kf8 27. Qd6+ Kg8) 26. Rxd7 {[%emt 0:04:54]} Nxd7 {[%emt 0:00:03]} 27. Qe6+ {[%emt 0:00:07]} ({Much less strong is} 27. Qxd7 Ra8 28. Qxb7 Rd8 29. Qxc6 Qg5 30. Bxb5 Qd2 $18) 27... Kf8 {[%emt 0:00:21][%cal Oa2b2]} 28. Qxa2 {[%emt 0:00:06] Threatens to win with Qa8+.} Qf4 {[%emt 0:00:27]} 29. Qa8+ {[%emt 0:00:18]} Ke7 {[%emt 0:00:16]} 30. Qxb7 {[%emt 0:00:06] White is clearly winning.} Kd6 {[%emt 0:01:24]} 31. Qa7 {[%emt 0:01:15]} Qd2 {[%emt 0:00:39]} 32. Nd3 {[%emt 0:00:33] Weighted Error Value: White=0.48/Black=0.86} 1-0

[Event "Teplice Open 2022"]
[Site "Teplice"]
[Date "2022.06.18"]
[Round "1.4"]
[White "Volek, Radomir"]
[Black "Demchenko, Anton"]
[Result "0-1"]
[ECO "C55"]
[WhiteElo "2113"]
[BlackElo "2654"]
[Annotator "TA"]
[PlyCount "44"]
[EventDate "2022.06.18"]
[EventType "swiss"]
[EventCountry "CZE"]
[SourceTitle "playchess.com"]
[Source "ChessBase"]
[SourceQuality "1"]
[TimeControl "40/5400+30:1800+30"]

{[%evp 11,44,40,60,36,41,5,10,5,19,0,14,0,0,-2,-5,-12,0,-105,-56,-175,-177,-187,-183,-175,-163,-186,-176,-185,-144,-283,-275,-320,-302,-305,-262]} 1. e4 {[%emt 0:00:03]} e5 {[%emt 0:00:18]} 2. Nf3 {[%emt 0:00:04]} Nc6 {[%emt 0:00:04]} 3. Bc4 {[%emt 0:01:04]} Nf6 {[%emt 0:00:07]} 4. d3 {[%emt 0:00:11]} h6 {[%emt 0:00:13]} 5. c3 {[%emt 0:00:14]} d6 {[%emt 0:00:14]} 6. O-O {[%emt 0:00:19]} g6 {[%emt 0:00:20] 6...g5 is more fashionable.} 7. h3 {[%emt 0:03:53] C55: Two Knights: 4 d3, 4 d4 exd4 5 e5 and Max Lange Attack.} Bg7 {[%emt 0:00:19]} 8. Be3 {[%emt 0:00:50]} O-O {[%emt 0:00:19]} 9. Nbd2 {[%emt 0:00:40] The position is equal.} a6 $5 {[%emt 0:09:30][%mdl 4] [#] An interesting side line.} 10. a3 $146 {[%emt 0:00:21]} ({Predecessor:} 10. Re1 d5 11. Bb3 Re8 12. exd5 Nxd5 13. Nf1 Be6 {½-½ (13) Diaz Calderon,S (1920)-Diaz Carias,S (1998) San Cristobal 2015}) 10... d5 {[%emt 0:01:06]} 11. Ba2 {[%emt 0:03:00]} Re8 {[%emt 0:01:53]} 12. Qb3 {[%emt 0:05:33][%cal Re4d5]} Be6 {[%emt 0:05:03] [#] ...dxe4 is the strong threat.} 13. Qc2 {[%emt 0:17:04]} (13. Qxb7 $2 Qd7 14. Bb6 dxe4 15. dxe4 Bxa2 16. Rxa2 Reb8 17. Qxc7 Qe6 $19) 13... Nh5 {[%emt 0:11:27] White must now prevent ...d4.} 14. d4 {[%emt 0:05:52]} (14. g4 $11 {keeps the balance.} Nf6 15. g5) 14... dxe4 {[%emt 0:15:16]} ({Black should play} 14... exd4 $17 15. Nxd4 Nxd4 16. cxd4 dxe4 17. Bxe6 Rxe6 18. Nxe4 Qe8) 15. Bxe6 {[%emt 0:00:50]} (15. Nxe5 $15 Nxe5 16. Bxe6) 15... exf3 $19 {[%emt 0:01:23]} ({And not} 15... Rxe6 16. Nxe4 exd4 17. cxd4 $11) 16. Bxf7+ {[%emt 0:00:36]} Kxf7 {[%emt 0:01:11]} 17. Qb3+ {[%emt 0:03:58]} Kf8 {[%emt 0:00:56]} 18. Nxf3 {[%emt 0:00:23]} exd4 {[%emt 0:08:02]} 19. cxd4 {[%emt 0:01:02]} Ne7 {[%emt 0:02:55] Strongly threatening ...Qd5.} 20. g4 {[%emt 0:02:20] [#]} (20. Qxb7 $17 Nf6 21. Rae1) 20... Nf6 $1 {[%emt 0:00:34] Black has a decisive advantage.} ({Not} 20... Qd7 21. gxh5 g5 22. Kh2 $14 (22. Bxg5 $2 hxg5 23. Nxg5 Qd5 $19)) 21. Ne5 {[%emt 0:02:15][%csl Ge5][%cal Rb3f7]} Qd5 {[%emt 0:01:10] Against Qf7+} 22. Qc2 {[%emt 0:00:23]} c6 {[%emt 0:01:18] Black took control after the opening.  Weighted Error Value: White=0.39/Black=0.07 (flawless)} 0-1

[Event "Teplice Open 2022"]
[Site "Teplice"]
[Date "2022.06.18"]
[Round "1.5"]
[White "Kollars, Dmitrij"]
[Black "Paseka, Matyas"]
[Result "1-0"]
[ECO "B51"]
[WhiteElo "2635"]
[BlackElo "2076"]
[Annotator "TA"]
[PlyCount "72"]
[EventDate "2022.06.18"]
[EventType "swiss"]
[EventCountry "CZE"]
[SourceTitle "playchess.com"]
[Source "ChessBase"]
[SourceQuality "1"]
[TimeControl "40/5400+30:1800+30"]

{[%evp 9,72,7,10,0,0,20,18,4,7,18,2,22,49,46,86,82,83,81,80,83,80,86,83,90,113,108,114,114,111,107,112,90,164,162,177,158,164,170,166,148,229,223,222,228,229,220,221,222,222,221,233,210,231,219,218,224,217,216,254,256,271,281,268,255,264]} 1. e4 {[%emt 0:00:08]} c5 {[%emt 0:00:08]} 2. Nf3 {[%emt 0:00:37]} d6 {[%emt 0:00:09]} 3. Bb5+ {[%emt 0:00:50]} Nd7 {[%emt 0:00:11]} 4. c4 {[%emt 0:01:32]} a6 {[%emt 0:04:51]} 5. Ba4 {[%emt 0:02:27]} Ngf6 {[%emt 0:01:07]} 6. Nc3 {[%emt 0:00:07] B51: Sicilian: Moscow Variation (3 Bb5+) without 3...Bd7.} e6 {[%emt 0:00:29]} 7. d4 {[%emt 0:01:07]} cxd4 {[%emt 0:00:36]} 8. Qxd4 {[%emt 0:00:12] The position is equal.} Be7 {[%emt 0:00:31]} 9. O-O {[%emt 0:00:24]} O-O {[%emt 0:02:04]} 10. Rd1 {[%emt 0:01:53]} Qc7 {[%emt 0:05:10]} 11. Bxd7 {[%emt 0:01:57] aiming for Ba4.} Bxd7 {[%emt 0:02:50]} 12. Bf4 $1 {[%emt 0:00:34]} Bc6 {[%emt 0:17:03] Threatens to win with ...e5.} 13. Bxd6 {[%emt 0:01:28]} Bxd6 {[%emt 0:00:12]} 14. Qxd6 {[%emt 0:00:06]} Qxd6 {[%emt 0:00:17]} 15. Rxd6 {[%emt 0:00:05]} Bxe4 {[%emt 0:07:28]} 16. Ne5 $1 {[%emt 0:01:37]} Rfd8 {[%emt 0:05:39]} 17. Rad1 {[%emt 0:04:20][%cal Ba1d1,Bd1d6,Bd6b6][%mdl 32] White is more active.} Rxd6 {[%emt 0:00:11]} 18. Rxd6 {[%emt 0:00:04]} Rc8 {[%emt 0:01:10] [#]} 19. f3 $1 {[%emt 0:13:50]} Bg6 {[%emt 0:05:32] [#]} 20. Na4 $146 {[%emt 0:18:11]} ({Predecessor:} 20. Rb6 Rc7 21. c5 Rxc5 22. Rxb7 Kf8 23. f4 Ke8 24. h4 Nd5 25. Nxg6 hxg6 26. Ne4 {1-0 (49) Iniyan,P (2516)-Abdisalimov,A (2435) New Delhi 2022}) 20... Kf8 {[%emt 0:03:48] [#]} (20... Ne8 $16 21. Rd2 f6) 21. b4 $1 $18 {[%emt 0:03:39]} Bb1 {[%emt 0:13:31]} 22. a3 {[%emt 0:05:04]} Ba2 {[%emt 0:07:58]} 23. Rb6 {[%emt 0:03:12]} Ne8 {[%emt 0:07:44]} 24. Rxb7 {[%emt 0:06:08]} Rc7 {[%emt 0:00:08]} (24... Nd6 $16 25. Ra7 Nxc4) 25. Rxc7 {[%emt 0:02:06]} Nxc7 {[%emt 0:00:06][%mdl 4096] Endgame KBN-KNN} 26. Nc3 {[%emt 0:04:39]} Bb3 {[%emt 0:06:23]} 27. Kf2 {[%emt 0:11:28]} f6 {[%emt 0:01:28]} 28. Nd7+ {[%emt 0:00:04]} Ke7 {[%emt 0:00:04]} 29. Nb6 {[%emt 0:00:03]} Kd6 {[%emt 0:00:14]} 30. Ke3 {[%emt 0:01:30]} Kc6 {[%emt 0:00:31]} 31. c5 {[%emt 0:00:32]} e5 {[%emt 0:05:23]} 32. f4 {[%emt 0:00:16]} exf4+ {[%emt 0:00:16]} 33. Kxf4 {[%emt 0:00:03]} Ne6+ {[%emt 0:00:36]} 34. Ke3 {[%emt 0:00:20] White has a decisive advantage.} f5 {[%emt 0:00:14]} 35. Ne2 {[%emt 0:00:41]} g5 {[%emt 0:02:09]} 36. g3 {[%emt 0:00:06]} Bd5 {[%emt 0:01:15] Black did not feel at home in the position after the opening.  Weighted Error Value: White=0.02 (flawless) /Black=0.11 (very precise)} 1-0

[Event "Teplice Open 2022"]
[Site "Teplice"]
[Date "2022.06.18"]
[Round "1.6"]
[White "Holst, Per"]
[Black "Fridman, Daniel"]
[Result "0-1"]
[ECO "E11"]
[WhiteElo "2111"]
[BlackElo "2605"]
[Annotator "TA"]
[PlyCount "64"]
[EventDate "2022.06.18"]
[EventType "swiss"]
[EventCountry "CZE"]
[SourceTitle "playchess.com"]
[Source "ChessBase"]
[SourceQuality "1"]
[TimeControl "40/5400+30:1800+30"]

{[%evp 12,64,10,0,27,22,20,-18,0,-43,-32,-54,-27,-29,-27,-33,-19,-26,-39,-21,-17,-27,-27,-26,-21,-21,-23,-28,-31,-24,-30,-33,-31,-221,-212,-214,-200,-216,-205,-247,-256,-285,-283,-288,-260,-243,-237,-364,-310,-489,-458,-519,-487,-620,-607]} 1. d4 {[%emt 0:00:03]} d5 {[%emt 0:00:05]} 2. Nf3 {[%emt 0:00:07]} Nf6 {[%emt 0:00:07]} 3. c4 {[%emt 0:00:24]} e6 {[%emt 0:00:06]} 4. g3 {[%emt 0:00:06]} Bb4+ {[%emt 0:00:07]} 5. Bd2 {[%emt 0:00:11]} a5 {[%emt 0:00:04]} 6. Bg2 {[%emt 0:00:13]} O-O {[%emt 0:00:08]} 7. Qc2 {[%emt 0:01:05]} c5 {[%emt 0:00:08] E11: Bogo-Indian.} 8. dxc5 {[%emt 0:10:30]} d4 {[%emt 0:00:14]} 9. O-O {[%emt 0:05:09]} Nc6 {[%emt 0:00:10] The position is equal.} 10. Bf4 {[%emt 0:02:53]} Bxc5 {[%emt 0:00:10]} 11. Nbd2 {[%emt 0:02:22]} a4 {[%emt 0:07:34] [#]} 12. Ne5 $146 {[%emt 0:25:22]} ({Predecessor:} 12. Rad1 Re8 13. Ne5 Nxe5 14. Bxe5 Nd7 15. Ne4 Nxe5 16. Nxc5 Qc7 17. Ne4 Rd8 18. Ng5 {1-0 (31) Ricardi,P (2464)-Lopez Azambuja,N (2318) Montevideo 2022}) 12... Nxe5 {[%emt 0:11:12]} 13. Bxe5 {[%emt 0:00:00][%cal Ob2b4]} Ng4 {[%emt 0:00:13]} 14. Nf3 {[%emt 0:04:12]} f6 {[%emt 0:00:49]} 15. Bf4 {[%emt 0:01:20]} e5 {[%emt 0:00:22][%cal Be6e5,Be5e4][%mdl 32]} 16. Bd2 {[%emt 0:04:08]} f5 {[%emt 0:09:14]} 17. h3 {[%emt 0:01:47] [#]} Nxf2 {[%emt 0:03:29]} 18. Rxf2 {[%emt 0:03:53]} e4 {[%emt 0:01:40]} 19. Bg5 {[%emt 0:06:13]} Qb6 {[%emt 0:00:59]} 20. Ne1 {[%emt 0:10:53]} h6 {[%emt 0:00:17]} 21. Bc1 $1 {[%emt 0:00:26]} g5 {[%emt 0:03:43]} (21... Be6 {looks sharper.} 22. Rb1 Bb4 23. Nd3 exd3 24. Qxd3 Rf7) 22. Bxe4 $2 {[%emt 0:01:36] Loses the game.} fxe4 $19 {[%emt 0:00:27]} 23. Rxf8+ {[%emt 0:00:18]} Bxf8 {[%emt 0:03:44]} ({Inferior is} 23... Kxf8 24. Qxe4 Qe6 25. Qf3+ Qf7 26. g4 $11) 24. Qxe4 {[%emt 0:00:26]} Bxh3 {[%emt 0:03:00]} 25. Nd3 {[%emt 0:00:27]} Qe6 {[%emt 0:09:21] Against g4} 26. Nf2 {[%emt 0:07:40]} Qxe4 {[%emt 0:07:08]} 27. Nxe4 {[%emt 0:00:02]} Bg7 {[%emt 0:00:18][%cal Oa4a3] [#] aiming for ...a3!} 28. Nf2 {[%emt 0:03:38]} Be6 {[%emt 0:00:34] And now ...a3 would win. This bishop pair is nice.} 29. c5 {[%emt 0:01:14]} (29. Bd2 {was necessary.}) 29... Re8 {[%emt 0:01:00]} 30. Nd3 {[%emt 0:00:39]} (30. Bd2 $142) 30... Bg4 {[%emt 0:00:18] Black is clearly winning.} 31. Bd2 {[%emt 0:04:40]} Rxe2 {[%emt 0:00:10]} 32. Be1 {[%emt 0:00:22]} Bf5 {[%emt 0:00:11] Weighted Error Value: White=0.44/Black=0.08 (flawless)} 0-1

[Event "Teplice Open 2022"]
[Site "Teplice"]
[Date "2022.06.18"]
[Round "1.7"]
[White "Azarov, Sergei"]
[Black "Lorscheid, Gerhard"]
[Result "1/2-1/2"]
[ECO "C41"]
[WhiteElo "2588"]
[BlackElo "2125"]
[Annotator "TA"]
[PlyCount "64"]
[EventDate "2022.06.18"]
[EventType "swiss"]
[EventCountry "CZE"]
[SourceTitle "playchess.com"]
[Source "ChessBase"]
[SourceQuality "1"]
[TimeControl "40/5400+30:1800+30"]

{[%evp 17,64,42,45,33,43,40,60,41,53,52,53,41,34,44,83,60,72,64,115,118,127,122,104,110,106,102,101,0,0,-4,0,-63,-85,-289,-278,-262,-268,-234,-254,-253,-243,-229,-226,-233,-83,-75,-77,-85,-90]} 1. e4 {[%emt 0:00:04]} d6 {[%emt 0:00:04]} 2. d4 {[%emt 0:00:14]} Nf6 {[%emt 0:00:08]} 3. Nc3 {[%emt 0:00:12]} e5 {[%emt 0:00:07]} 4. Nf3 {[%emt 0:01:22]} Nbd7 {[%emt 0:00:09]} 5. Bc4 {[%emt 0:00:31]} Be7 {[%emt 0:00:08]} 6. O-O {[%emt 0:00:36]} O-O {[%emt 0:00:51]} 7. Re1 {[%emt 0:00:42]} c6 {[%emt 0:00:07]} 8. a4 {[%emt 0:01:03]} h6 {[%emt 0:01:09] The modern move.} 9. h3 {[%emt 0:05:11]} Re8 {[%emt 0:00:25]} 10. Be3 {[%emt 0:08:07] C41: Philidor Defence.} Bf8 {[%emt 0:40:12]} 11. d5 {[%emt 0:14:17]} a5 {[%emt 0:03:39]} 12. Qd3 {[%emt 0:02:57] [#] White is slightly better.} Nb8 $146 {[%emt 0:01:47]} ({Predecessor:} 12... Be7 13. Bb3 Nb6 14. Rad1 c5 15. Nd2 Bd7 16. f4 exf4 17. Bxf4 Nh7 18. Rf1 g5 {1-0 (26) Siigur,J (2466)-Visser,W (1987) ICCF email 2012}) 13. Nd2 {[%emt 0:05:15]} Na6 {[%emt 0:00:14]} 14. Bxa6 {[%emt 0:00:58]} Rxa6 {[%emt 0:00:12]} 15. Nc4 {[%emt 0:00:22]} Qc7 {[%emt 0:08:45]} 16. Rad1 {[%emt 0:04:08]} cxd5 {[%emt 0:16:53]} 17. exd5 {[%emt 0:03:27]} Nd7 {[%emt 0:01:14]} (17... Nh5 $14) 18. Nb5 $16 {[%emt 0:01:04]} Qd8 {[%emt 0:00:30]} 19. f4 {[%emt 0:05:37]} exf4 {[%emt 0:05:13]} 20. Bxf4 {[%emt 0:00:22]} Rxe1+ {[%emt 0:03:05]} 21. Rxe1 {[%emt 0:00:06][%cal Rf4d6]} Nc5 {[%emt 0:02:39][%csl LRa4,LRd3]} 22. Qe3 {[%emt 0:14:34] 0x0.0022293c9e03dp-1022s more active pieces.} ({White should play} 22. Qf3 $16) 22... Nxa4 $11 {[%emt 0:02:47]} 23. Ncxd6 {[%emt 0:02:58] Pair of Knights!} Bd7 {[%emt 0:01:16] Prevents Qe8. And now ...Bxb5 would win.} (23... Rxd6 $2 24. Nxd6 Nb6 25. Nxc8 Qxc8 26. d6 $18) 24. Kh1 {[%emt 0:04:37]} ({Better is} 24. Nxb7 $11 Qc8 25. N5d6 Qxc2 26. b3) 24... Nxb2 $15 {[%emt 0:02:56] Hoping for ...a4.} 25. Qd4 {[%emt 0:02:35] [#]} (25. Rb1 $17 Rb6 26. Rxb2 Bxd6 27. Bxd6 Rxb5 28. Rxb5 Bxb5 29. Qc5) 25... Qh4 $1 $19 {[%emt 0:00:58]} 26. Qe3 {[%emt 0:05:07]} Bxb5 27. Nxb5 {[%emt 0:00:09]} Nc4 {[%emt 0:02:04] Prevents d6.} 28. Qg3 {[%emt 0:03:01]} Qxg3 {[%emt 0:01:02]} 29. Bxg3 {[%emt 0:00:02]} a4 {[%emt 0:00:15] Strongly threatening ...a3.} 30. Re4 {[%emt 0:00:06]} Nd6 {[%emt 0:01:11]} (30... Nb6 $19 {and Black stays clearly on top. White must now prevent ...a3.} 31. Re8 Ra5) 31. Nxd6 $17 {[%emt 0:04:09]} Bxd6 {[%emt 0:00:02]} 32. Bxd6 {[%emt 0:00:22]} Rxd6 {[%emt 0:00:06] Weighted Error Value: White=0.33/Black=0.11 (very precise)} 1/2-1/2